bitfinex/quotes_SOLUSD_20250912
["timestamp","ask_amount","ask_price","bid_price","bid_amount"]
[1757659074175,52.78,237.45,237.43,30.21176767]
[1757659075054,32.78,237.46,237.45,26.0]
[1757659076080,32.78,237.46,237.45,4.21141292]
[1757659076282,32.78,237.46,237.45,30.21141292]
[1757659080077,32.78,237.46,237.45,26.0]
[1757659080266,20.0,237.48,237.45,26.0]
[1757659080466,32.78,237.47,237.45,26.0]
[1757659080864,32.78,237.47,237.44,0.69]
[1757659081066,32.78,237.47,237.45,0.69]
[1757659081271,32.78,237.47,237.46,0.69]
[1757659081880,52.78,237.48,237.46,0.69]
[1757659082182,52.78,237.48,237.47,4.21105823]
[1757659082380,1e-08,237.49,237.47,4.90105823]
[1757659082700,1e-08,237.49,237.48,26.69]
[1757659083492,1e-08,237.49,237.48,30.90088091]
[1757659084962,0.03000001,237.49,237.48,30.90088091]
[1757659088284,0.03000001,237.49,237.48,30.21088091]
[1757659088483,0.24000001,237.49,237.48,30.21088091]
[1757659088683,33.02000001,237.49,237.48,30.21088091]
[1757659088892,32.81000001,237.49,237.48,30.21088091]
[1757659089278,32.81000001,237.49,237.48,30.90088091]
[1757659090777,32.81000001,237.49,237.48,30.21088091]
[1757659091973,0.03000001,237.49,237.48,30.21088091]
[1757659096582,0.03000001,237.49,237.48,30.90088091]
[1757659096793,0.03000001,237.49,237.48,30.21088091]
[1757659098769,0.03000001,237.49,237.48,30.90088091]
[1757659099103,0.03000001,237.49,237.48,30.21088091]
[1757659100408,0.03000001,237.49,237.48,30.90088091]
[1757659104711,0.03000001,237.49,237.48,31.02088091]
[1757659106014,32.79000001,237.49,237.48,31.02088091]
[1757659106907,0.03000001,237.49,237.48,31.02088091]
[1757659110393,0.03000001,237.49,237.48,30.33088091]
[1757659111099,0.03000001,237.49,237.48,30.99088091]
[1757659111604,0.03000001,237.49,237.48,30.33088091]
[1757659111809,0.03000001,237.49,237.48,30.99088091]
[1757659112016,0.03000001,237.49,237.48,30.33088091]
[1757659112390,32.79000001,237.49,237.48,30.33088091]
[1757659116716,33.48000001,237.49,237.48,30.33088091]
[1757659116888,33.48000001,237.49,237.48,4.33088091]
[1757659117298,33.48000001,237.49,237.48,30.33088091]
[1757659117584,0.03000001,237.49,237.48,30.33088091]
[1757659117795,0.03000001,237.49,237.48,30.99088091]
[1757659119502,0.03000001,237.49,237.48,30.33088091]
[1757659124019,0.03000001,237.49,237.48,30.99088091]
[1757659125423,0.03000001,237.49,237.48,30.33088091]
[1757659125608,0.72000001,237.49,237.48,30.33088091]
[1757659125815,0.03000001,237.49,237.48,30.33088091]
[1757659127393,14.31559402,237.49,237.48,30.33088091]
[1757659127715,14.31559402,237.49,237.48,4.33088091]
[1757659127914,14.31559402,237.49,237.48,30.33088091]
[1757659129027,47.05559402,237.49,237.48,30.33088091]
[1757659130914,46.36559402,237.49,237.48,30.33088091]
[1757659131223,47.05559402,237.49,237.48,30.33088091]
[1757659132724,46.36559402,237.49,237.48,30.33088091]
[1757659132920,13.62559402,237.49,237.48,30.33088091]
[1757659133320,46.36559402,237.49,237.48,30.33088091]
[1757659134333,13.62559402,237.49,237.48,30.33088091]
[1757659134534,46.36559402,237.49,237.48,30.33088091]
[1757659140241,47.02559402,237.49,237.48,30.33088091]
[1757659141239,47.02559402,237.49,237.48,0.12]
[1757659141240,47.55193197,237.49,237.48,0.12]
[1757659141537,51.76263557,237.49,237.48,0.12]
[1757659141738,55.23370371,237.49,237.48,0.12]
[1757659142052,20.0,237.46,237.45,0.12]
[1757659142235,66.84199845,237.46,237.45,0.12]
[1757659142447,67.50199845,237.46,237.45,0.12]
[1757659143615,34.78199845,237.46,237.45,0.12]
[1757659143820,67.50199845,237.46,237.45,0.12]
[1757659148731,70.97306659,237.46,237.45,0.12]
[1757659149036,71.71323402,237.46,237.45,0.12]
[1757659149245,75.18430216,237.46,237.45,0.12]
[1757659152969,71.71323402,237.46,237.45,0.12]
[1757659153134,75.18430216,237.46,237.45,0.12]
[1757659154358,71.71323402,237.46,237.45,0.12]
[1757659154541,75.18430216,237.46,237.45,0.12]
[1757659154876,71.71323402,237.46,237.45,0.12]
[1757659155054,75.18430216,237.46,237.45,0.12]
[1757659159264,42.46430216,237.46,237.45,0.12]
[1757659159458,75.18430216,237.46,237.45,0.12]
[1757659161548,71.71323402,237.46,237.45,0.12]
[1757659161743,75.18430216,237.46,237.45,0.12]
[1757659162761,42.46430216,237.46,237.45,0.12]
[1757659162939,74.52430216,237.46,237.45,0.12]
[1757659163339,75.18430216,237.46,237.45,0.12]
[1757659164566,42.46430216,237.46,237.45,0.12]
[1757659164777,75.18430216,237.46,237.45,0.12]
[1757659164974,42.46430216,237.46,237.45,0.12]
[1757659165176,34.12199845,237.46,237.45,0.12]
[1757659165360,66.84199845,237.46,237.45,0.78]
[1757659167743,34.12199845,237.46,237.45,0.78]
[1757659167944,66.84199845,237.46,237.45,0.78]
[1757659174681,34.12199845,237.46,237.45,0.78]
[1757659174989,66.84199845,237.46,237.45,0.78]
[1757659175960,34.12199845,237.46,237.45,0.78]
[1757659176160,66.84199845,237.46,237.45,0.78]
[1757659176977,34.12199845,237.46,237.45,4.99141292]
[1757659177386,66.82199845,237.46,237.45,4.99141292]
[1757659177987,34.12199845,237.46,237.45,4.99141292]
[1757659178166,66.29559401,237.46,237.45,4.99141292]
[1757659191691,66.29559401,237.46,237.45,30.33141292]
[1757659192067,66.29559401,237.46,237.45,30.99141292]
[1757659198002,66.29559401,237.46,237.45,0.12]
[1757659198369,66.82199845,237.46,237.45,0.12]
[1757659198593,71.71323402,237.46,237.45,0.12]
[1757659198965,73.93690568,237.46,237.45,0.12]
[1757659201037,13.59559401,237.45,237.44,0.12]
[1757659201302,21.72064363,237.45,237.44,0.12]
[1757659201475,22.40064363,237.45,237.44,0.12]
[1757659201883,28.29743798,237.45,237.44,0.12]
[1757659203986,26.07376632,237.45,237.44,0.12]
[1757659204301,28.29743798,237.45,237.44,0.12]
[1757659205406,26.07376632,237.45,237.44,0.12]
[1757659205593,28.29743798,237.45,237.44,0.12]
[1757659207207,26.07376632,237.45,237.44,0.12]
[1757659207506,53.42067859,237.45,237.44,0.12]
[1757659207709,51.19700693,237.45,237.44,0.12]
[1757659207911,53.42067859,237.45,237.44,0.12]
[1757659209102,20.74067859,237.45,237.44,0.12]
[1757659209290,53.42067859,237.45,237.44,0.12]
[1757659209817,52.74067859,237.45,237.44,0.12]
[1757659210112,53.42067859,237.45,237.44,0.12]
[1757659210412,52.74067859,237.45,237.44,0.12]
[1757659211507,13.62559401,237.45,237.44,0.79]
[1757659211685,46.30559401,237.45,237.44,0.79]
[1757659211880,48.52926567,237.45,237.44,0.79]
[1757659213487,46.30559401,237.45,237.44,0.79]
[1757659213994,13.62559401,237.45,237.44,0.79]
[1757659214198,46.30559401,237.45,237.44,0.79]
[1757659217490,13.62559401,237.45,237.44,0.79]
[1757659217684,46.28559401,237.45,237.44,0.79]
[1757659218730,50.49700693,237.45,237.44,0.12]
[1757659219501,46.28559401,237.45,237.44,0.79]
[1757659220331,50.49700693,237.45,237.44,0.79]
[1757659220627,50.49700693,237.45,237.44,0.12]
[1757659220808,50.49700693,237.45,237.44,0.79]
[1757659221000,53.40067859,237.45,237.43,0.12]
[1757659221199,53.40067859,237.45,237.42,0.12]
[1757659221200,13.59559401,237.43,237.42,0.12]
[1757659221404,54.362809,237.43,237.42,0.12]
[1757659221601,54.362809,237.43,237.41,0.12]
[1757659221602,59.59559401,237.42,237.41,0.12]
[1757659221802,13.59559401,237.41,237.4,0.12]
[1757659222016,55.04092296,237.41,237.4,0.12]
[1757659222228,59.77956075,237.41,237.4,0.12]
[1757659222608,61.46529731,237.41,237.4,0.12]
[1757659223520,61.46529731,237.41,237.32,0.79]
[1757659223814,41.70092296,237.4,237.32,0.12]
[1757659224007,41.70092296,237.4,237.32,0.79]
[1757659224211,48.27903048,237.4,237.32,0.79]
[1757659224604,78.71535882,237.4,237.34,0.67]
[1757659224805,80.93903048,237.4,237.34,0.67]
[1757659225004,81.46556796,237.4,237.34,0.67]
[1757659225406,78.37098762,237.4,237.38,0.12]
[1757659227433,75.58391067,237.4,237.38,0.12]
[1757659227815,81.45036704,237.4,237.38,0.12]
[1757659228336,78.36286343,237.4,237.38,0.12]
[1757659228929,40.02023901,237.4,237.38,0.12]
[1757659229143,74.90391067,237.4,237.38,0.12]
[1757659230437,76.15794772,237.4,237.38,0.12]
[1757659230815,76.15794772,237.4,237.39,0.094]
[1757659232141,76.15794772,237.4,237.39,0.794]
[1757659232517,76.15794772,237.4,237.39,0.094]
[1757659232913,76.83794772,237.4,237.39,0.094]
[1757659233111,82.69942156,237.4,237.39,0.094]
[1757659236342,49.35942156,237.4,237.39,0.094]
[1757659236656,76.15794772,237.4,237.39,0.094]
[1757659236856,78.93675754,237.4,237.39,0.094]
[1757659237024,76.15794772,237.4,237.39,0.094]
[1757659237225,78.93721227,237.4,237.39,0.094]
[1757659237829,91.57721227,237.4,237.39,0.094]
[1757659238039,78.41067479,237.4,237.39,0.094]
[1757659238244,78.93721227,237.4,237.39,0.094]
[1757659239252,82.02679966,237.4,237.39,0.094]
[1757659240524,49.36679966,237.4,237.39,0.094]
[1757659240749,82.02679966,237.4,237.39,0.094]
[1757659241949,71.88909095,237.4,237.39,0.094]
[1757659242130,101.45950356,237.4,237.39,0.094]
[1757659242323,104.41067479,237.4,237.39,0.794]
[1757659242837,104.41067479,237.4,237.39,0.094]
[1757659243034,104.41474479,237.4,237.39,0.094]
[1757659243232,107.50808825,237.4,237.39,0.094]
[1757659243548,107.53808825,237.4,237.39,0.094]
[1757659244125,107.53808825,237.4,237.39,0.794]
[1757659244527,104.06037954,237.4,237.39,0.794]
[1757659244745,107.53808825,237.4,237.39,0.794]
[1757659245233,107.53894593,237.4,237.39,0.794]
[1757659245648,107.53894593,237.4,237.39,0.094]
[1757659245822,82.21894593,237.4,237.39,0.094]
[1757659246023,82.74548341,237.4,237.39,0.094]
[1757659246645,82.74596529,237.4,237.39,0.094]
[1757659248839,79.26825658,237.4,237.39,0.094]
[1757659249046,82.06596529,237.4,237.39,0.094]
[1757659252857,82.06511013,237.4,237.39,0.094]
[1757659254154,49.40511013,237.4,237.39,0.094]
[1757659254360,34.15213149,237.4,237.39,0.794]
[1757659254534,66.26559401,237.4,237.39,0.794]
[1757659254858,66.79213149,237.4,237.39,0.794]
[1757659255059,34.15213149,237.4,237.39,0.794]
[1757659255263,66.79213149,237.4,237.39,0.794]
[1757659256657,34.15213149,237.4,237.39,0.794]
[1757659256859,66.26559401,237.4,237.39,0.794]
[1757659259053,33.62559401,237.4,237.39,0.794]
[1757659259261,66.26559401,237.4,237.39,0.794]
[1757659261674,66.26559401,237.4,237.39,5.00647735]
[1757659262482,20.03,237.4,237.39,5.00647735]
[1757659262649,52.67,237.4,237.39,5.00647735]
[1757659263373,32.67,237.4,237.39,5.00647735]
[1757659263680,52.67,237.4,237.39,5.00647735]
[1757659264676,32.67,237.4,237.39,5.00647735]
[1757659266481,0.03,237.4,237.39,5.00647735]
[1757659274184,1e-08,237.43,237.42,26.0]
[1757659274667,1e-08,237.43,237.42,26.67]
[1757659274867,1e-08,237.43,237.42,30.88194507]
[1757659276687,1e-08,237.43,237.42,4.88194507]
[1757659283505,1e-08,237.43,237.42,17.54314079]
[1757659283675,1e-08,237.43,237.42,4.88194507]
[1757659285304,1e-08,237.48,237.45,26.0]
[1757659285801,1e-08,237.48,237.46,0.68]
[1757659286208,1e-08,237.48,237.47,4.21105823]
[1757659286790,1e-08,237.48,237.47,4.89105823]
[1757659289496,0.03,237.5,237.47,4.89105823]
[1757659289711,0.03,237.51,237.5,26.0]
[1757659290399,0.03,237.51,237.5,26.68]
[1757659291203,0.03,237.51,237.5,30.89052631]
[1757659292700,0.03,237.54,237.52,26.0]
[1757659293211,0.03,237.54,237.52,30.21017177]
[1757659293785,0.03,237.54,237.52,30.89017177]
[1757659294506,0.03,237.54,237.52,26.0]
[1757659295403,1e-08,237.53,237.52,26.68]
[1757659295713,1e-08,237.53,237.52,0.68]
[1757659296206,1e-08,237.55,237.54,26.0]
[1757659296386,1e-08,237.55,237.54,26.68]
[1757659296908,1e-08,237.55,237.54,30.88981729]
[1757659298415,1e-08,237.55,237.54,4.88981729]
[1757659302090,1e-08,237.55,237.54,30.88981729]
[1757659302497,0.2,237.64,237.57,26.0]
[1757659302694,0.2,237.64,237.61,26.0]
[1757659303224,0.2,237.64,237.62,0.68]
[1757659303520,0.2,237.64,237.63,4.20822286]
[1757659304409,1e-08,237.64,237.63,4.88822286]
[1757659307519,1e-08,237.69,237.66,26.0]
[1757659307917,1e-08,237.69,237.67,33.24]
[1757659308105,1e-08,237.69,237.68,32.56]
[1757659308422,1e-08,237.69,237.68,0.68]
[1757659308817,1e-08,237.69,237.68,4.88733759]
[1757659310120,1e-08,237.69,237.68,30.88733759]
[1757659310296,1e-08,237.69,237.68,63.42733759]
[1757659312008,1e-08,237.69,237.68,30.88733759]
[1757659312210,1e-08,237.69,237.68,63.42733759]
[1757659312407,0.03000001,237.69,237.68,63.42733759]
[1757659313027,0.03000001,237.69,237.68,75.97002413]
[1757659313227,0.2,237.75,237.68,107.5250561]
[1757659313526,0.03,237.74,237.71,26.0]
[1757659313702,0.03,237.74,237.72,33.22]
[1757659314404,0.71,237.74,237.72,4.20662964]
[1757659314608,0.03,237.74,237.72,4.20662964]
[1757659314818,0.71,237.74,237.72,4.20662964]
[1757659316834,0.03,237.74,237.72,11.2678264]
[1757659317032,0.03,237.74,237.72,4.89662964]
[1757659317808,0.03,237.74,237.72,11.27116056]
[1757659318043,0.03,237.74,237.72,4.79662964]
[1757659318213,0.03,237.74,237.72,11.27632727]
[1757659318416,0.03,237.74,237.72,10.58632727]
[1757659320452,0.03,237.74,237.72,4.10662964]
[1757659320453,0.68,237.73,237.72,4.10662964]
[1757659321516,0.03,237.74,237.72,4.10662964]
[1757659321720,0.03,237.74,237.73,26.0]
[1757659322646,0.03,237.74,237.73,30.20645269]
[1757659326637,0.71,237.74,237.73,30.20645269]
[1757659327638,0.71,237.74,237.71,10.51695656]
[1757659327639,14.30559401,237.74,237.71,4.20663037]
[1757659327831,20.0,237.72,237.69,4.20708479]
[1757659328029,20.0,237.69,237.66,4.20769166]
[1757659328230,0.68,237.68,237.66,4.20769166]
[1757659329139,20.0,237.69,237.66,4.20769166]
[1757659329349,20.68,237.69,237.66,4.20769166]
[1757659329661,20.0,237.69,237.68,30.20733759]
[1757659329826,20.5258287,237.72,237.68,40.72568158]
[1757659330030,0.71,237.74,237.71,26.0]
[1757659330031,20.03,237.74,237.71,26.0]
[1757659330248,20.03,237.74,237.71,26.69]
[1757659331540,20.03,237.74,237.73,26.0]
[1757659333635,20.03,237.74,237.73,4.20645269]
[1757659333833,20.5256518,237.8,237.73,41.41258443]
[1757659334031,20.0,237.77,237.74,0.69]
[1757659334336,20.0,237.75,237.73,40.72258443]
[1757659334841,0.68,237.74,237.73,40.72258443]
[1757659335342,20.0,237.75,237.73,40.72258443]
[1757659335543,20.68,237.75,237.73,40.72258443]
[1757659337923,20.0,237.75,237.73,40.72258443]
[1757659338550,14.27559401,237.74,237.73,4.20645269]
[1757659338735,20.0,237.69,237.64,4.89804578]
[1757659338938,20.68,237.69,237.66,10.51896172]
[1757659339132,20.0,237.67,237.66,10.51896172]
[1757659341137,20.68,237.67,237.66,10.51896172]
[1757659341351,20.0,237.67,237.66,10.51896172]
[1757659343062,20.0,237.67,237.66,14.72665338]
[1757659344351,13.59559401,237.73,237.69,26.0]
[1757659344352,20.0,237.71,237.69,26.0]
[1757659345135,20.0,237.71,237.7,4.20698359]
[1757659347651,20.67,237.71,237.7,4.20698359]
[1757659348555,34.26559401,237.71,237.7,4.20698359]
[1757659349055,34.23171295,237.71,237.7,4.20698359]
[1757659349745,13.59559401,237.7,237.69,26.0]
[1757659350066,14.79146695,237.7,237.69,26.0]
[1757659350851,14.12146695,237.7,237.69,30.20716058]
[1757659354965,14.79146695,237.7,237.69,30.20716058]
[1757659356179,14.12146695,237.7,237.69,30.20716058]
[1757659356358,14.12146695,237.7,237.67,4.20751462]
[1757659356563,19.96611894,237.68,237.67,4.20751462]
[1757659361665,67.27763014,237.68,237.67,26.0]
[1757659361873,13.59559401,237.67,237.66,0.12]
[1757659362057,17.06162827,237.67,237.66,0.12]
[1757659362256,17.73162827,237.67,237.66,0.12]
[1757659362468,14.26559401,237.67,237.66,0.12]
[1757659362678,13.59559401,237.67,237.66,0.8]
[1757659362852,13.59559401,237.67,237.66,4.32769166]
[1757659368774,13.59559401,237.67,237.66,5.00769166]
[1757659369784,20.49203613,237.68,237.66,5.00769166]
[1757659369981,19.96611894,237.68,237.66,5.00769166]
[1757659370385,32.52,237.67,237.66,5.00769166]
[1757659373180,32.52,237.67,237.66,30.32769166]
[1757659374588,32.52,237.67,237.66,31.00769166]
[1757659384970,52.48611894,237.68,237.66,31.00769166]
[1757659385292,52.48611894,237.68,237.67,0.66]
[1757659386797,52.48611894,237.68,237.67,4.86751462]
[1757659387376,32.52,237.69,237.67,15.38630117]
[1757659387575,32.52,237.69,237.68,0.66]
[1757659388800,32.52,237.69,237.68,4.86733759]
[1757659393101,19.96611894,237.7,237.69,30.20716058]
[1757659393282,52.48611894,237.7,237.69,30.20716058]
[1757659393484,0.03,237.74,237.69,41.38506204]
[1757659393690,0.03,237.74,237.71,26.0]
[1757659394190,0.03,237.74,237.72,0.66]
[1757659394391,0.03,237.74,237.73,26.0]
[1757659394894,0.03,237.74,237.73,26.66]
[1757659395305,0.03,237.74,237.73,30.86645269]
[1757659395681,0.03,237.74,237.73,32.54857385]
[1757659396100,0.03,237.76,237.73,32.54857385]
[1757659396101,0.03,237.76,237.73,75.58470559]
[1757659396312,0.1,237.89,237.78,26.0]
[1757659396692,0.1,237.89,237.82,26.0]
[1757659396885,0.1,237.89,237.84,26.0]
[1757659397288,0.1,237.89,237.85,0.66]
[1757659397494,0.1,237.89,237.88,26.0]
[1757659397692,0.1,237.89,237.88,26.66]
[1757659398208,0.1,237.95,237.88,45.20868131]
[1757659398403,0.1,237.95,237.89,0.66]
[1757659398993,0.1,237.95,237.89,2.3409901]
[1757659399188,0.1,237.95,237.9,0.66]
[1757659399407,0.1,237.95,237.92,30.20309347]
[1757659399590,0.1,237.95,237.93,0.66]
[1757659399787,0.1,237.95,237.93,13.26742577]
[1757659400190,0.1,237.95,237.94,0.66]
[1757659400988,0.1,237.95,237.94,4.86274018]
[1757659401904,0.1,237.95,237.94,30.86274018]
[1757659402094,0.1,237.95,237.94,43.46910639]
[1757659405801,0.1,237.95,237.94,42.80910639]
[1757659405998,0.1,237.95,237.94,38.60636621]
[1757659407509,0.1,237.95,237.94,26.0]
[1757659407709,0.1,237.95,237.94,0.69]
[1757659407909,0.1,237.95,237.94,39.29636621]
[1757659408217,0.1,237.95,237.94,38.60636621]
[1757659408420,0.1,237.95,237.78,157.2149506]
[1757659408421,13.59559401,237.94,237.84,0.69]
[1757659408725,32.7,237.93,237.85,12.61060552]
[1757659408890,0.52538668,237.92,237.88,26.0]
[1757659409090,13.59559401,237.92,237.88,26.69]
[1757659409314,32.7,237.93,237.88,0.69]
[1757659409529,32.7,237.93,237.88,13.29901545]
[1757659409820,0.68,237.92,237.89,4.20362352]
[1757659410013,32.7,237.93,237.89,4.20362352]
[1757659411008,32.7,237.93,237.89,14.71268232]
[1757659411209,14.27559401,237.92,237.89,30.20362352]
[1757659411818,14.27559401,237.92,237.9,26.0]
[1757659412819,1.20540876,237.91,237.83,14.71626505]
[1757659413030,1.20540876,237.91,237.86,26.0]
[1757659413209,33.44,237.9,237.83,16.81634981]
[1757659413510,13.59559401,237.88,237.83,4.20468401]
[1757659413712,13.59559401,237.88,237.85,26.0]
[1757659414101,13.59559401,237.86,237.83,14.71639405]
[1757659414302,13.59559401,237.86,237.85,26.0]
[1757659414490,1.20547502,237.88,237.86,26.0]
[1757659414690,46.35559401,237.87,237.86,26.0]
[1757659414891,46.35559401,237.87,237.86,30.2041537]
[1757659416700,13.59559401,237.87,237.86,30.2041537]
[1757659416897,46.33559401,237.87,237.86,30.2041537]
[1757659417708,13.59559401,237.87,237.86,30.2041537]
[1757659417920,46.33559401,237.87,237.86,30.2041537]
[1757659418228,13.59559401,237.87,237.86,30.2041537]
[1757659418403,46.33559401,237.87,237.86,30.2041537]
[1757659421531,0.03,237.92,237.86,30.2041537]
[1757659421532,32.7,237.88,237.86,15.40453795]
[1757659421731,32.7,237.88,237.87,0.69]
[1757659422103,32.7,237.88,237.86,14.71453795]
[1757659422304,32.7,237.88,237.86,15.40453795]
[1757659422723,32.7,237.88,237.87,0.69]
[1757659423027,32.7,237.88,237.86,14.71453795]
[1757659423419,46.97559401,237.88,237.87,26.0]
[1757659423929,46.29559401,237.88,237.87,26.0]
[1757659425225,36.73504351,237.88,237.87,30.20397696]
[1757659430315,13.59559401,237.87,237.85,4.20421875]
[1757659430516,46.25559401,237.86,237.85,4.20421875]
[1757659433342,32.66,237.86,237.85,4.89421875]
[1757659433530,32.66,237.86,237.85,15.4050449]
[1757659434322,0.55538668,237.92,237.85,15.4050449]
[1757659434323,32.64,237.87,237.85,15.4050449]
[1757659434534,32.64,237.87,237.86,0.69]
[1757659435334,0.55538668,237.92,237.87,4.20397696]
[1757659435535,13.59559401,237.9,237.87,4.20397696]
[1757659435739,32.64,237.89,237.87,4.20397696]
[1757659436727,0.03,237.92,237.88,0.69]
[1757659436931,32.62,237.9,237.89,26.0]
[1757659437319,32.62,237.9,237.89,26.69]
[1757659437725,32.62,237.9,237.89,26.0]
[1757659437932,32.62,237.9,237.89,26.69]
[1757659438843,32.62,237.9,237.89,30.89362352]
[1757659440149,32.62,237.9,237.89,30.20362352]
[1757659441354,32.62,237.9,237.89,30.89362352]
[1757659441540,32.62,237.9,237.89,30.20362352]
[1757659442132,32.62,237.9,237.89,30.89362352]
[1757659448949,32.61,237.91,237.9,26.0]
[1757659449463,0.03,237.91,237.9,26.0]
[1757659450261,0.03,237.91,237.9,30.20344682]
[1757659451665,32.59,237.91,237.9,30.20344682]
[1757659451866,46.18559401,237.91,237.9,30.20344682]
[1757659453254,32.59,237.91,237.9,30.20344682]
[1757659454046,32.61,237.91,237.9,30.20344682]
[1757659454969,46.20559401,237.91,237.9,30.20344682]
[1757659456472,46.88559401,237.91,237.9,4.20344682]
[1757659456970,46.20559401,237.91,237.9,4.20344682]
[1757659457168,13.59559401,237.9,237.87,14.71391936]
[1757659457356,13.59559401,237.9,237.89,26.0]
[1757659457768,17.01620126,237.9,237.85,0.12]
[1757659458071,15.81077041,237.86,237.85,0.12]
[1757659458251,13.59559401,237.86,237.85,0.12]
[1757659458562,14.80111322,237.86,237.85,0.12]
[1757659459141,47.42111322,237.86,237.85,0.12]
[1757659459356,14.80111322,237.86,237.85,0.12]
[1757659459567,47.40111322,237.86,237.85,0.12]
[1757659459767,14.80111322,237.86,237.85,0.12]
[1757659460071,47.40111322,237.86,237.85,0.12]
[1757659460860,14.80111322,237.86,237.85,0.12]
[1757659461249,47.40111322,237.86,237.85,0.12]
[1757659462149,14.12111322,237.86,237.85,0.12]
[1757659462469,46.19559401,237.88,237.85,15.52515661]
[1757659462774,46.19559401,237.88,237.86,0.69]
[1757659463750,46.19559401,237.88,237.85,14.83515661]
[1757659463950,46.19559401,237.88,237.85,15.52515661]
[1757659465355,46.19559401,237.88,237.85,14.83515661]
[1757659465772,46.19559401,237.88,237.85,4.32433046]
[1757659466150,46.19559401,237.88,237.85,30.32433046]
[1757659466356,1.19549712,237.87,237.85,26.12]
[1757659466556,0.52549712,237.87,237.85,0.12]
[1757659466792,0.52549712,237.87,237.85,4.32432227]
[1757659467295,32.6,237.86,237.85,4.32432227]
[1757659469190,0.52549712,237.87,237.85,4.32432227]
[1757659469364,32.6,237.86,237.85,4.32432227]
[1757659469980,0.52549712,237.87,237.85,4.32432227]
[1757659470173,32.58,237.86,237.85,4.32432227]
[1757659470376,46.17559401,237.86,237.85,5.04432227]
[1757659472181,13.59559401,237.86,237.85,5.04432227]
[1757659472476,46.17559401,237.86,237.85,5.04432227]
[1757659472986,13.59559401,237.86,237.85,5.04432227]
[1757659473183,46.15559401,237.86,237.85,5.04432227]
[1757659474859,13.59559401,237.86,237.85,5.04432227]
[1757659475155,46.15559401,237.86,237.85,5.04432227]
[1757659476684,13.59559401,237.86,237.85,5.04432227]
[1757659477086,46.13559401,237.86,237.85,5.04432227]
[1757659477574,13.59559401,237.86,237.85,5.04432227]
[1757659477875,46.13559401,237.86,237.85,5.04432227]
[1757659479166,46.11559401,237.86,237.85,5.04432227]
[1757659479787,13.59559401,237.86,237.85,5.04432227]
[1757659479994,46.11559401,237.86,237.85,5.04432227]
[1757659481087,13.59559401,237.86,237.85,5.04432227]
[1757659481303,46.11559401,237.86,237.85,5.04432227]
[1757659481492,13.59559401,237.86,237.85,5.04432227]
[1757659481674,46.11559401,237.86,237.85,5.04432227]
[1757659481875,13.59559401,237.86,237.85,5.04432227]
[1757659482074,46.11559401,237.86,237.85,5.04432227]
[1757659482877,13.59559401,237.86,237.85,5.04432227]
[1757659483077,46.11559401,237.86,237.85,5.04432227]
[1757659484097,46.11559401,237.86,237.85,30.32432227]
[1757659488900,13.59559401,237.86,237.85,30.32432227]
[1757659489099,0.03,237.91,237.85,41.55514842]
[1757659489280,32.52,237.89,237.86,0.72]
[1757659490404,46.11559401,237.89,237.88,26.0]
[1757659490707,46.11559401,237.89,237.88,26.72]
[1757659491291,46.11559401,237.89,237.88,4.92380023]
[1757659493895,46.14559401,237.89,237.88,4.92380023]
[1757659494308,45.82874895,237.89,237.88,30.92380023]
[1757659499093,13.62559401,237.89,237.88,30.92380023]
[1757659499294,46.14559401,237.89,237.88,30.92380023]
[1757659500725,46.14559401,237.89,237.88,30.20380023]
[1757659501418,13.62559401,237.89,237.88,30.20380023]
[1757659501631,46.14559401,237.89,237.88,4.20380023]
[1757659502926,46.14559401,237.89,237.88,30.20380023]
[1757659503129,46.14559401,237.89,237.86,4.20410788]
[1757659503130,13.59559401,237.88,237.86,4.20410788]
[1757659503313,32.52,237.87,237.86,4.20410788]